Cogmind - Beta 16.1 @@@ ROGUE MODE // 2026.03.01 @ 15:52:30 Player: Krysmphoenix Result: Destroyed by Y-45 Defender with Heavy Assault Rifle Performance ------------- Evolutions (1) 500 Regions Visited (2) 400 Robots Destroyed (42) 210 Value Destroyed (802) 802 Prototype IDs (3) 60 Alien Tech Used (0) 0 Bonus (0) 0 TOTAL SCORE: 1972 Bonus ------- None Cogmind --------- Core Integrity 0/400 Matter 300/300 Energy 99/100 System Corruption 0% Temperature Cool (9) Movement Flying (30) Location -9/Materials Parts ------- > --- POWER (1) -------- (None) > --- PROPULSION (3) --- Flight Unit VTOL Module VTOL Module > --- UTILITY (3) ------ Advanced Visual Processing Unit Signal Interpreter > --- WEAPON (2) ------- Hammer Heavy Flail > --- INVENTORY (5) ---- Flight Unit Mining Laser Plasma Cutter Heavy Flail Heavy Flail Peak State ------------ > --- POWER ------------ (None) > --- PROPULSION ------- Flight Unit VTOL Module VTOL Module > --- UTILITY ---------- Advanced Visual Processing Unit Signal Interpreter Propulsion Shielding > --- WEAPON ----------- Hammer Heavy Flail > --- INVENTORY -------- Flight Unit Mining Laser Plasma Cutter Heavy Flail Heavy Flail [Rating: 15] Favorites ----------- Power Ion Engine Engine Ion Engine Propulsion Flight Unit Wheel Wheel Flight Unit Flight Unit Utility Signal Interpreter Device Tractor Beam Storage Small Storage Unit Processor Signal Interpreter Protection Propulsion Shielding Weapon Hammer Energy Gun Small Laser Ballistic Gun Assault Rifle Impact Weapon Hammer Slashing Weapon Mining Claw Special Melee Weapon Datajack Build | -11 -10 -9 ------- Run | Yrd Mat Mat Slots Evolved 2 | . . 2 Power . | . . . Propulsion 1 | . . 1 Utility 1 | . . 1 Weapon . | . . . Parts Attached 41 | 7 15 19 Power 4 | 1 1 2 Engine 4 | 1 1 2 Core . | . . . Reactor . | . . . Propulsion 19 | 2 9 8 Treads . | . . . Leg . | . . . Wheel 2 | 2 . . Hover . | . . . Flight 17 | . 9 8 Utility 7 | 2 2 3 Device 2 | 1 1 . Storage 1 | 1 . . Processor 3 | . 1 2 Hackware . | . . . Protection 1 | . . 1 Artifact . | . . . Weapon 11 | 2 3 6 Energy Gun 3 | 1 2 . Energy Cannon . | . . . Ballistic Gun 3 | 1 . 2 Ballistic Cannon . | . . . Launcher . | . . . Special Weapon . | . . . Impact Weapon 3 | . . 3 Slashing Weapon 1 | . 1 . Piercing Weapon . | . . . Special Melee Weapon 1 | . . 1 Unidentified Prototypes 1 | . . 1 Parts Lost 15 | . 6 9 Power 2 | . . 2 Propulsion 8 | . 4 4 Utility 3 | . 1 2 Weapon 2 | . 1 1 Highest Loss Streak 4 | . 3 4 To Critical Strikes . | . . . Average Backups 3 | 1 4 4 Power . | . . . Propulsion . | . 1 . Utility . | . . . Weapon 2 | 1 2 2 Tool/Special . | . . . Unused Backups 7 | 1 2 4 Power . | . . . Propulsion . | . . . Utility 1 | 1 . . Weapon 5 | . 2 3 Tool/Special 1 | . . 1 Average Slot Usage (%) 90 | . 92 89 Engine 8 | . 14 4 Wheel 3 | . 7 . Flight 26 | . 20 32 Device 7 | . 14 1 Storage 1 | . 3 . Processor 14 | . 10 18 Protection 5 | . . 10 Energy Gun 4 | . 9 . Ballistic Gun 3 | . 3 2 Impact Weapon 8 | . . 16 Slashing Weapon 4 | . 7 1 Peak Build Rating 15 | 7 9 15 Average Rating 9 | 5 7 12 On Entrance 5 | . 7 8 Avg Prop Armor Cover (%) . | . . . Naked Turns . | . . . Heaviest Build 14 | 14 14 10 Greatest Support 20 | 20 20 15 Greatest Overweight (x) 1 | . . 1 Average Overweight (x) . | . . . Largest Inventory Capacity 8 | 8 8 5 Average Capacity 5 | 7 5 5 Most Carried 5 | 3 5 5 Average Carried 3 | 1 4 4 Final Capacity 8 | 8 5 5 Final Carried 5 | 2 4 5 Class Distribution -------------------- 46% | Sprinter 33% | Mutant 16% | Scavenger-Mutant 4% | Scavenger-Sprinter Dominant Class ---------------- Mutant | -10/Materials Sprinter | -9/Materials Resources | -11 -10 -9 ----------- Run | Yrd Mat Mat Matter Collected 752 | 305 135 312 Remotely 156 | . 80 76 Salvage Created 1153 | 223 317 613 Parts 81 | 25 28 28 Haulers Intercepted . | . . . Recyclers Shooed . | . . . Parts Field Recycled . | . . . Retrieved Matter . | . . . Parts Self-Destructed . | . . . Prevented . | . . . Parts Restored . | . . . Kills | -11 -10 -9 ------- Run | Yrd Mat Mat Combat Hostiles Destroyed 30 | . 11 19 Melee 17 | . 6 11 Guns 8 | . 5 3 Classes Destroyed 8 | 3 3 2 Worker 2 | 2 . . Tunneler 5 | 5 . . Recycler 1 | 1 . . Watcher 4 | . 1 3 Swarmer 16 | . 7 9 Grunt 9 | . 4 5 Brawler 1 | . . 1 Sentry 4 | . . 4 Best Kill Streak 5 | 5 4 5 Combat Bots Only 4 | . 3 4 Max Kills in Single Turn 1 | 1 1 1 Gunslinging . | . . . Exploded . | . . . Melee 1 | . 1 1 Uniques/NPCs Destroyed . | . . . Combat | -11 -10 -9 -------- Run | Yrd Mat Mat Hostile Shots Fired 226 | . 72 154 Missed 89 | . 25 64 Hits 137 | . 47 90 Melee 1 | . . 1 Projectile 136 | . 47 89 Critical Strikes 4 | . . 4 Actively Blocked 1 | . . 1 Damage Taken 1478 | . 542 936 Core 612 | . 209 403 Absorbed by Shields . | . . . Redirected to Shielding 52 | . . 52 Core Remaining (%) 58 | 100 16 . Volleys Fired 53 | 15 24 14 Largest 2 | 2 1 2 Hottest 60 | 60 40 43 Shots Fired 75 | 30 24 21 Gun 75 | 30 24 21 Cannon . | . . . Launcher . | . . . Special . | . . . Kinetic 36 | 15 . 21 Thermal 15 | 15 . . Explosive . | . . . Electromagnetic 24 | . 24 . Robot Hit Streak 7 | 7 5 5 Robot Miss Streak 4 | 4 3 3 Penetration Max . | . . . Secondary Targets . | . . . Shots Hit Robots 112 | 17 28 67 Core Hits 38 | 9 15 14 Critical Kills 3 | . . 3 Critical Parts Destroyed 9 | . . 9 Critical Strikes 12 | . . 12 Smash 12 | . . 12 Melee Attacks 99 | . 23 76 Impact 73 | . . 73 Slashing 26 | . 23 3 Piercing . | . . . Sneak Attacks . | . . . Combat Hostiles . | . . . Follow-up Attacks 11 | . . 11 Damage Inflicted 2254 | 203 509 1542 Guns 568 | 203 195 170 Cannons . | . . . Explosions . | . . . Melee 1686 | . 314 1372 Ramming . | . . . Kinetic 275 | 105 . 170 Thermal 98 | 98 . . Explosive . | . . . Electromagnetic 195 | . 195 . Impact 1342 | . . 1342 Slashing 344 | . 314 30 Piercing . | . . . Highest Corruption . | . . . Average Corruption . | . . . Corruption Purged . | . . . Corruption Blocked . | . . . Overload Shots . | . . . Overflow Damage 309 | . . 309 Projectiles . | . . . Explosions . | . . . Melee 309 | . . 309 Knockbacks . | . . . Impact . | . . . Kinetic . | . . . Secondary . | . . . Self-Inflicted Damage . | . . . Shots . | . . . Rammed . | . . . Targets Rammed . | . . . Kicked . | . . . Crushed . | . . . Highest Temperature 66 | . 66 19 Average Temperature 19 | . 24 5 Received Heat Transfer 366 | . 117 249 Siege Activations . | . . . Martial Activations . | . . . Shielding Activations . | . . . Robots Disrupted . | . . . Combat Hostiles . | . . . Robots Corrupted 6 | . . 6 Combat Hostiles 5 | . . 5 Parts Fried 9 | . 1 8 Impact Corruptions 19 | . . 19 Robots Melted . | . . . Combat Hostiles . | . . . Parts Melted . | . . . Heat Transferred 225 | 225 . . Parts Sabotaged . | . . . Parts Stolen . | . . . Parts Stripped . | . . . Power Chain Reactions . | . . . Alert | -11 -10 -9 ------- Run | Yrd Mat Mat Maximum Alert Level 1 | . . 1 Low Security (%) 93 | 100 100 86 Level 1 6 | . . 13 Level 2 . | . . . Level 3 . | . . . Level 4 . | . . . Level 5 . | . . . High Security . | . . . Max Security . | . . . Peak Influence 239 | 10 107 239 Initial 33 | . . 33 Average 67 | 3 36 109 Influence Increases 921 | 40 330 551 Destroy 0b10 Robot/C 600 | . 220 380 Destroy 0b10 Robot/NC 60 | 40 5 15 Destroy Leader 128 | . 32 96 Successful Hack 43 | . 28 15 Partial Spotted 30 | . 15 15 Lose Combat Pursuer 60 | . 30 30 Influence Decreases 686 | 40 251 395 Entered New Map 46 | . . 46 Time Decay 510 | 40 191 279 Lost Part 130 | . 60 70 Squads Dispatched 1 | . . 1 Investigation . | . . . Extermination . | . . . Reinforcement 1 | . . 1 Assault . | . . . Garrison . | . . . Intercept . | . . . Searches Triggered . | . . . Construction Impeded . | . . . Haulers Reinforced . | . . . Active Scanning Responses . | . . . Cargo Convoy Interrupts . | . . . Stealth | -11 -10 -9 --------- Run | Yrd Mat Mat Distress Signals 3 | . . 3 Communications Jammed . | . . . Distress Signals . | . . . Times Spotted 47 | . 19 28 Peak Tracking Total 5 | . 5 5 Tactical Retreats 3 | . 1 2 Traps | -11 -10 -9 ------- Run | Yrd Mat Mat Traps Triggered . | . . . Indirectly . | . . . Trap Hack Attempts . | . . . Triggered . | . . . Disarmed . | . . . Reprogrammed . | . . . Reused . | . . . Traps Extracted . | . . . Installed . | . . . Triggered . | . . . Machines | -11 -10 -9 ---------- Run | Yrd Mat Mat Machines Disabled . | . . . Max in Single Turn . | . . . Machines Repaired . | . . . Machines Dismantled . | . . . Machines Sabotaged . | . . . Overloaded Fab Kills . | . . . Hacking | -11 -10 -9 --------- Run | Yrd Mat Mat Machines Accessed 14 | . 7 7 Terminals 12 | . 7 5 Fabricators . | . . . Repair Stations . | . . . Recycling Units 1 | . . 1 Scanalyzers 1 | . . 1 Garrison Access . | . . . Total Hacks 58 | . 29 29 Successful 44 | . 20 24 Failed 14 | . 9 5 Catastrophic . | . . . Database Lockouts . | . . . Manual 25 | . 14 11 Terminals 46 | . 29 17 Fabricators . | . . . Repair Stations . | . . . Recycling Units 2 | . . 2 Scanalyzers 10 | . . 10 Garrison Access . | . . . Terminal Hacks 16 | . 11 5 Record 7 | . 5 2 Robot Analysis 1 | . . 1 Prototype ID Bank 1 | . 1 . Alert Level 1 | . 1 . Dispatch Records 2 | . 1 1 Assault Status 1 | . 1 . Recall Reinforcements 1 | . 1 . Zone Layout 2 | . 1 1 Fabricator Hacks . | . . . Repair Station Hacks . | . . . Recycling Unit Hacks 2 | . . 2 Process 1 | . . 1 Report Inventory 1 | . . 1 Scanalyzer 10 | . . 10 Insert Component 3 | . . 3 Analyze 3 | . . 3 Retrieve Study 4 | . . 4 Garrison Access Hacks . | . . . Unauthorized Hacks 16 | . 9 7 Terminals 16 | . 9 7 Assimilate 5 | . 3 2 Botnet 11 | . 6 5 Fabricators . | . . . Repair Stations . | . . . Recycling Units . | . . . Scanalyzers . | . . . Garrison Access . | . . . Data Cores Recovered . | . . . Used . | . . . Hacking Detections 12 | . 7 5 Full Trace Events . | . . . Feedback Events . | . . . Feedback Blocked . | . . . Robot Schematics Acquired . | . . . Robots Built . | . . . Authchips . | . . . Time . | . . . Total Robot Build Rating . | . . . Part Schematics Acquired 3 | . . 3 Parts Built . | . . . Authchips . | . . . Time . | . . . Total Part Build Rating . | . . . Part Studies Acquired 4 | . . 4 Parts Repaired . | . . . Time . | . . . Parts Recycled . | . . . Recycled Matter 44 | . . 44 Retrieved Matter . | . . . Retrieved Components . | . . . Parts Scanalyzed 3 | . . 3 Part Schematics Acquired 3 | . . 3 Parts Damaged . | . . . Bothacking | -11 -10 -9 ------------ Run | Yrd Mat Mat Used RIF Installer . | . . . Robots Hacked . | . . . Non-combat . | . . . Combat . | . . . Robot Hacks Applied . | . . . Relay Couplers Released . | . . . Fabnet Peak Effective % . | . . . Robots Rewired . | . . . Allies Hacked . | . . . Hacks Repelled . | . . . Allies | -11 -10 -9 -------- Run | Yrd Mat Mat Total Allies 1 | . 1 . Largest Group 1 | . 1 . Highest-Rated Group 10 | . 10 . Highest-Rated Ally 10 | . 10 . Total Orders . | . . . Ally Attacks . | . . . Total Damage . | . . . Kills . | . . . Allies Corrupted . | . . . Allies Melted . | . . . Intel | -11 -10 -9 ------- Run | Yrd Mat Mat Active Infowar (turns) 694 | 4 263 427 Optics 427 | . . 427 Seismic 267 | 4 263 . Robot Analysis Total 1 | . . 1 Derelict Logs Recovered . | . . . Drone Launches . | . . . Drone Recoveries . | . . . Exploration | -11 -10 -9 ------------- Run | Yrd Mat Mat Turns Passed 1342 | 128 585 629 Spaces Moved 1646 | 82 790 774 Core 3 | 3 . . Treads . | . . . Legs . | . . . Wheels 219 | 79 140 . Hover . | . . . Flight 1424 | . 650 774 Fastest Speed 30 | 50 32 30 Average Speed 39 | 78 41 32 Slowest Speed 114 | 80 80 114 Overloaded Moves . | . . . Propulsion Burnouts . | . . . Robots Hopped 5 | . 4 1 Potential Cave-ins . | . . . Cave-ins Triggered . | . . . Exploration Rate (%) 53 | 4 92 64 Regions Visited 2 Branch Regions . Pre-discovered Areas . | . . . Known Exits Taken 1 | . 1 . Unknown Exits Taken 1 | 1 . . Scrap Searched . | . . . Spaces Dug . | . . . Terrain Destroyed . | . . . Melee . | . . . Projectile . | . . . AOE . | . . . Terrain Rammed . | . . . Walls Destroyed . | . . . Machines Disabled . | . . . Actions | -11 -10 -9 --------- Run | Yrd Mat Mat Total 2113 | 115 976 1022 Wait 211 | 1 92 118 Move 1635 | 81 782 772 Hop 4 | . 3 1 Pick Up 51 | 10 21 20 Fast Attach . | . . . Attach 27 | 7 9 11 Detach 3 | . 2 1 Swap 21 | . 6 15 Drop 23 | 1 14 8 Fire 53 | 15 24 14 Melee 85 | . 23 62 Ram . | . . . Kick . | . . . Crush . | . . . Escape Stasis . | . . . Rewire . | . . . Trap . | . . . Miscellaneous . | . . . Route ------- -11/Scrapyard -10/Materials (discovered 3 exits: *Mat x2 / [*Min]) -9/Materials (discovered 3 exits: *Mat / [*Min x2]) History --------- Turn | Location | Event 18 | -11/Scrapyard | Discovered new exit (range 16) 129 | -11/Scrapyard | Entered Materials 295 | -10/Materials | Discovered new exit (range 13) 309 | -10/Materials | Build established: Mutant 423 | -10/Materials | Lost 3 parts (2n1u) 432 | -10/Materials | Discovered new exit (range 15) 437 | -10/Materials | Identified exit to Materials 554 | -10/Materials | Discovered exit to Materials (range 14) 618 | -10/Materials | Core integrity fell below 50% 629 | -10/Materials | Derelicts attacked the area 714 | -10/Materials | Entered another Materials area 714 | -9/Materials | Evolved 2 slots: Propulsion x1, Utility x1 757 | -9/Materials | Build established: Sprinter 854 | -9/Materials | Lost 4 parts (1p1n1u1w) 1026 | -9/Materials | Discovered new exit (range 5) 1027 | -9/Materials | Identified exit to Materials 1077 | -9/Materials | Core integrity fell below 50% 1177 | -9/Materials | Discovered new exit (range 12) 1253 | -9/Materials | Core integrity fell below 20% 1323 | -9/Materials | Discovered new exit (range 14) 1343 | -9/Materials | Destroyed by Y-45 Defender with Heavy Assault Rifle Last Messages --------------- effect. 01263_ S-10 Pest destroyed. 01267_ R-06 Scavenger collects Lgt. Assault Rifle. 01269_ Dropped Flight Unit+. 01269_ Acquired Flight Unit+. 01273_ Acquired 20 matter. 01275_ Destroyed Lgt. Ion Engine. 01275_ W-16 Scout system corrupted by crushing effect. 01276_ W-16 Scout system terminally corrupted. 01276_ Hover Unit fried. 01321_ Propulsion Shielding destroyed. 01321_ R-06 Scavenger destroyed. 01323_ EXIT=FOUND 01324_ Critical hit (Burn: +37). 01335_ Y-45 Defender suffers critical hit (Smash). 01335_ Y-45 Defender destroyed. 01340_ K-01 Serf collects debris. Map ----- +----------------------------------------------------+ | "" ##???????????## """"" ?? | | ##########????# """"" ########## ?? | | ##""|"!""#????# """ ##????????# ?? | | ## "|"!" #???## #?#???????# ?? | | ## ##### "" # #???????# ?? | | T" # #???????# ?? | | < "" #????????# ?? | | T" ########?## ?? | | ###### ##### # #?# ?? | | #???#########???## ########## +%= % #?# ?? | | ]#??????????????? # # # # #?# ?? | | #??????????????? / + # # #?# ?? | | #?????????????"" # # # % # [ #?# ?? | | #????????????""" # # # # % #?###?? | | #????????????""" # # # ##+#####?????? | | #????????????##?## # # #?????????? | | ##????????????????# # # ##### #?????????? | | ??????????????????# ########## #???# #?????????? | | ???????????#??????# #######??# #???# #?????????? | | ???????????#]] #### # #### ###?# #?????????? | | ???????????#]] ! ==%= #?# #?????????? | | ???????????#!! = =[! #?# #?????????? | | ???????????#!! [%= #?# #?????????? | | ???????????#[[ #### ! ########?#+#?????????? | | ???????????#[[ ? ???## ##????????????????????? | | ???????????####?? ????# @ #?????????????????????? | | ?????????????????? ????# Y #?????????????????????? | | ?????????????????? ????# #?????????????????????? | | ???????????????????????# k #?????????????????????? | | ???????????????????????# #?????????????????????? | | ???????????????????????# #?????????????????????? | | ??????????????????????? t?????????????????????? | | ??????????????????????? ?????????????????????? | | ######### ????????????# < ?????????????????????? | | ????????????#t ????????????????????? | | ????????????# #????????????????????? | | ????????????#######????????????????????? | | ############?????????????????????????????????????? | | #?????????????????????????????????????? | | #?????????????????????????????????????? | | #?????????????????????????????????????? | | #?????????????????????????????????????? | | #?????????????????????????????????????? | | ############?????????????????????????????????????? | | ##???????????????????????????????????????????????? | | #???????????????????????????????????????????????? | | #???????????????????????????????????????????????? | | #???????????????????????????????????????????????? | | #???????????????????????????????????????????????? | | #???????????????????????????????????????????????? | +----------------------------------------------------+ Best States ------------- Heat Dissipation 28 Energy Generation 10 Energy Capacity 250 Matter Stores 300 Matter Capacity 300 Sight Range 20 Terrain Scan Density 10 Propulsion Shielding 33 Evasion (%) 64 Item Schematics ----------------- Hvy. Flail | -9/Materials | Scanalyzed Mining Laser | -9/Materials | Scanalyzed Plasma Cutter | -9/Materials | Scanalyzed Robot Schematics ------------------ None Fabricated ------------ Nothing Repaired ---------- Nothing Studied --------- Flight Unit | -9/Materials | Hacked Hammer | -9/Materials | Hacked Mining Laser | -9/Materials | Hacked Plasma Cutter | -9/Materials | Hacked Alien Tech Used ----------------- None Achievements -------------- That Tickles Challenges ------------ None Game ------ Seed ZipMetaFragment Manual? 0 Play Time 00:31:57 Cumulative 12.7 hours Start 2026.03.01 @ 15:16:44 End 2026.03.01 @ 15:52:30 Sessions 1 Manual Loads 0 Difficulty Rogue Special Mode None Game No. 22 Rogue 19 Adventurer 3 Explorer 0 Win Type - Total 1 Types 1/0/0/0/0/0/0/0/0/0 Lore% 11 Gallery% 16 Achievement% 18 Wizard Run 0 Options --------- Layout 1 ASCII 0 Keyboard 0 Movement Numpad Keybinds 0 Fullscreen 2 Font 24/Proggy Map View 50x35 Zoom Use 0% Tactical HUD 1 Map Filters NONE Filters NONE Steam 1 RUN: 5221c5ea-91ad-49be-803a-467cd512ac05